Cogmind - Beta 10.2 @@@ ROGUE MODE // 2020.11.08 @ 16:33:26 // Halloween2020/ForbiddenLore Player: Demise Result: Destroyed by EX-DEC with AWS/EX-DEC Performance ------------- Evolutions (1) 500 Regions Visited (5) 1000 Robots Destroyed (82) 410 Value Destroyed (1866) 1866 Prototype IDs (38) 760 Alien Tech Used (0) 0 Bonus (511) 511 TOTAL SCORE: 5047 Bonus ------- High Alert Combat Kills 81 Follower Combat Kills 142 Aligned with FarCom 300 Friendly Fire -12 Cogmind --------- Core Integrity 0/400 Matter 218/300 Energy 265/265 System Corruption 4% Temperature Cool (0) Movement Treading (220) Ox3 Location -9/Exiles Parts ------- > --- POWER (1) -------- Improved Ion Engine > --- PROPULSION (2) --- Light Treads > --- UTILITY (4) ------ High-capacity Storage Unit High-capacity Storage Unit Salvage Targeting Computer > --- WEAPON (2) ------- Heavy Assault Rifle > --- INVENTORY (20) --- Reinforced Fission Core Advanced Myomer Leg Advanced Myomer Leg Experimental Heat Sink Small Matter Pod (50) Small Matter Pod (50) High-capacity Matter Pod (72) High-capacity Matter Pod (200) Experimental Targeting Computer Propulsion Shielding Weapon Shielding Light Armor Plating Heavy Assault Rifle Heavy Assault Rifle Improved Assault Rifle 8R-AWN's Boregun 8R-AWN's Boregun Rocket Launcher Datajack Peak State ------------ > --- POWER ------------ Improved Ion Engine > --- PROPULSION ------- Light Treads Light Treads > --- UTILITY ---------- Humpback Salvage Targeting Computer Hardened Light Armor Plating > --- WEAPON ----------- Heavy Assault Rifle Improved Assault Rifle > --- INVENTORY -------- Reinforced Fission Core Experimental Heat Sink Humpback Gravity Neutralizing Apparatus Gravity Neutralizing Apparatus Experimental Targeting Computer Advanced Weapon Cycler Cloak of Protection Propulsion Shielding Weapon Shielding Light Armor Plating 8R-AWN's Armor/EX AS-neutralizer No. 17b Firepult Heavy Assault Rifle Heavy Assault Rifle 8R-AWN's Boregun 8R-AWN's Boregun Rocket Launcher Datajack Plasma Cutter [Rating: 27] Favorites ----------- Power Improved Ion Engine Engine Improved Ion Engine Power Core Light Nuclear Core Propulsion Improved Treads Treads Improved Treads Leg Aluminum Leg Utility High-capacity Storage Unit Device Shield Generator Storage High-capacity Storage Unit Processor Salvage Targeting Computer Protection Hardened Light Armor Plating Weapon Heavy Assault Rifle Energy Gun Small Laser Energy Cannon Beam Cannon Ballistic Gun Heavy Assault Rifle Launcher Rocket Launcher Special Weapon Mining Laser Impact Weapon Makeshift Hammer Slashing Weapon Katana Special Melee Weapon Datajack Build | -11 -10 -10 -9 -9 -9 ------- Run | Scr Mat Min Mat Min Exi Slots Evolved 2 | . . . 2 . . Power . | . . . . . . Propulsion . | . . . . . . Utility 2 | . . . 2 . . Weapon . | . . . . . . Parts Attached 91 | 1 14 11 38 8 19 Power 9 | . 1 4 2 1 1 Engine 8 | . 1 3 2 1 1 Core 1 | . . 1 . . . Reactor . | . . . . . . Propulsion 15 | . 2 3 7 . 3 Treads 14 | . 2 2 7 . 3 Leg 1 | . . 1 . . . Wheel . | . . . . . . Hover . | . . . . . . Flight . | . . . . . . Utility 27 | 1 3 . 13 3 7 Device 6 | . . . 6 . . Storage 14 | 1 3 . 4 2 4 Processor 1 | . . . . . 1 Hackware . | . . . . . . Protection 6 | . . . 3 1 2 Artifact . | . . . . . . Weapon 40 | . 8 4 16 4 8 Energy Gun 4 | . 2 . 2 . . Energy Cannon 3 | . 3 . . . . Ballistic Gun 22 | . 1 3 11 3 4 Ballistic Cannon . | . . . . . . Launcher 2 | . . . . . 2 Special Weapon 4 | . 2 . . 1 1 Impact Weapon 1 | . . 1 . . . Slashing Weapon 3 | . . . 3 . . Piercing Weapon . | . . . . . . Special Melee Weapon 1 | . . . . . 1 Unidentified Prototypes 2 | . . . 2 . . Parts Lost 21 | . . 7 3 2 9 Power 2 | . . 1 . . 1 Propulsion 7 | . . 3 . . 4 Utility 3 | . . . 1 1 1 Weapon 9 | . . 3 2 1 3 Highest Loss Streak 4 | . . 3 1 1 4 Average Slot Usage (%) 95 | . 98 97 98 99 86 Engine 11 | . 14 9 11 11 11 Treads 20 | . 24 19 20 22 19 Leg 1 | . 3 6 1 . . Device 3 | . . . 10 1 . Storage 23 | . 27 28 22 30 19 Processor 2 | . . . . . 8 Protection 7 | . . . 10 12 6 Energy Cannon 1 | . 12 . . . . Ballistic Gun 18 | . 10 27 20 21 13 Special Weapon 1 | . 1 . . . 3 Special Melee Weapon 1 | . . . . . 4 Naked Turns . | . . . . . . Heaviest Build 155 | 15 57 57 84 109 155 Greatest Support 46 | 20 40 40 46 46 46 Greatest Overweight (x) 3 | . 1 2 3 2 3 Average Overweight (x) 1 | . . 1 1 1 2 Largest Inventory Capacity 40 | 8 18 18 24 32 40 Average Capacity 20 | 7 12 18 19 24 24 Most Carried 32 | 8 14 18 20 32 32 Average Carried 18 | 6 9 16 18 23 20 Final Capacity 32 | 8 18 18 20 32 20 Final Carried 32 | 8 14 18 20 32 19 Class Distribution -------------------- 59% | Hauler-Mutant 40% | Mutant Dominant Class ---------------- Mutant | -10/Materials Mutant | -10/Mines Hauler-Mutant | -9/Materials Hauler-Mutant | -9/Mines Hauler-Mutant | -9/Exiles Resources | -11 -10 -10 -9 -9 -9 ----------- Run | Scr Mat Min Mat Min Exi Matter Collected 3046 | 222 107 419 1149 202 947 Remotely . | . . . . . . Salvage Created 3120 | 104 393 410 1564 287 362 Parts 204 | 13 23 13 93 19 43 Haulers Intercepted 8 | . 2 . 6 . . Recyclers Shooed 2 | . . 1 1 . . Parts Field Recycled . | . . . . . . Retrieved Matter . | . . . . . . Parts Self-Destructed . | . . . . . . Prevented . | . . . . . . Kills | -11 -10 -10 -9 -9 -9 ------- Run | Scr Mat Min Mat Min Exi Combat Hostiles Destroyed 53 | . 8 8 25 8 4 Guns 44 | . 2 7 25 8 2 Cannons 7 | . 6 1 . . . AOE 2 | . . . . . 2 Classes Destroyed 11 | 2 4 1 2 . 2 Tunneler 4 | 4 . . . . . Hauler 8 | . 2 . 6 . . Recycler 4 | 1 . 1 2 . . Operator 3 | . . . 3 . . Turret 1 | . . . . . 1 Watcher 5 | . 2 . 3 . . Swarmer 10 | . 3 . 4 3 . Grunt 27 | . 5 7 12 3 . Sentry 11 | . . . 9 2 . Zionite 8 | . . . . . 8 Assembled 4 | . . 1 . . 3 Best Kill Streak 4 | 3 3 3 4 3 4 Combat Bots Only 4 | . 3 3 4 3 3 Max Kills in Single Turn 2 | 1 1 1 2 1 2 Gunslinging . | . . . . . . Exploded 2 | . . . . . 2 Melee . | . . . . . . Uniques/NPCs Destroyed 2 | . . . . . 2 8R-AWN (-9/Exiles) EX-HEX (-9/Exiles) Combat | -11 -10 -10 -9 -9 -9 -------- Run | Scr Mat Min Mat Min Exi Damage Taken 4102 | . 152 949 1170 375 1456 Core 533 | . 18 105 140 35 235 Absorbed by Shields 286 | . . . 236 50 . Core Remaining (%) 75 | 100 . 50 . . . Volleys Fired 355 | 12 31 39 133 27 113 Largest 2 | 2 2 2 2 2 2 Hottest 100 | 60 100 80 60 100 46 Shots Fired 625 | 23 53 79 265 48 157 Gun 550 | 23 22 72 265 44 124 Cannon 35 | . 28 7 . . . Launcher 12 | . . . . . 12 Special 28 | . 3 . . 4 21 Kinetic 527 | 12 12 72 263 44 124 Thermal 86 | 11 41 7 2 4 21 Explosive 12 | . . . . . 12 Electromagnetic . | . . . . . . Robot Hit Streak 30 | 7 5 9 21 14 30 Robot Miss Streak 4 | 2 4 2 4 2 3 Penetration Max . | . . . . . . Secondary Targets 1 | . . . 1 . . Max Gunslinging Chain 1 | . . . 1 . . Shots Hit Robots 411 | 14 31 54 166 34 112 Core Hits 163 | 7 17 21 65 14 39 Critical Hits 6 | . . 2 1 . 3 Critical Kills 2 | . . 1 . . 1 Critical Parts Destroyed 4 | . . 1 1 . 2 Melee Attacks 10 | . . 1 5 . 4 Impact 1 | . . 1 . . . Slashing 5 | . . . 5 . . Piercing . | . . . . . . Sneak Attacks 4 | . . . . . 4 Combat Hostiles . | . . . . . . Follow-up Attacks . | . . . . . . Damage Inflicted 6051 | 149 425 503 2354 528 2092 Guns 5065 | 149 114 397 2353 528 1524 Cannons 382 | . 311 71 . . . Explosions 447 | . . . . . 447 Melee 29 | . . 29 . . . Ramming 7 | . . 6 1 . . Kinetic 4882 | 63 28 397 2342 528 1524 Thermal 686 | 86 397 71 11 . 121 Explosive 447 | . . . . . 447 Electromagnetic . | . . . . . . Impact 29 | . . 29 . . . Slashing . | . . . . . . Piercing . | . . . . . . Highest Corruption 5 | . . 5 . . 4 Average Corruption 4 | . . 5 . . 2 Corruption Purged . | . . . . . . Effects 21 | . . 21 . . . Message Errors 11 | . . 11 . . . Matter Fused 1 | . . 1 . . . Heat Flow Errors 3 | . . 3 . . . Energy Discharges 1 | . . 1 . . . Data Loss (minor) 1 | . . 1 . . . Misfires 2 | . . 2 . . . Targeting Errors 1 | . . 1 . . . Weapon Failures 1 | . . 1 . . . Overload Shots . | . . . . . . Overflow Damage 11 | . . . . . 11 Projectiles 11 | . . . . . 11 Explosions . | . . . . . . Melee . | . . . . . . Knockbacks 1 | . . 1 . . . Impact 1 | . . 1 . . . Kinetic . | . . . . . . Secondary . | . . . . . . Self-Inflicted Damage 34 | . . . . . 34 Shots 2 | . . . . . 2 Rammed 3 | . . 2 1 . . Targets Rammed 3 | . . 2 1 . . Kicked . | . . . . . . Crushed . | . . . . . . Highest Temperature 255 | 40 207 255 4 72 24 Average Temperature 42 | 19 55 77 2 26 10 Received Heat Transfer 1143 | . 66 429 486 162 . Siege Activations . | . . . . . . Robots Corrupted . | . . . . . . Combat Hostiles . | . . . . . . Parts Fried . | . . . . . . Impact Corruptions . | . . . . . . Robots Melted . | . . . . . . Combat Hostiles . | . . . . . . Parts Melted 5 | . . . . . 5 Heat Transferred 1646 | 200 866 148 25 . 407 Parts Sabotaged . | . . . . . . Parts Stolen . | . . . . . . Parts Stripped . | . . . . . . Power Chain Reactions . | . . . . . . Missiles Intercepted . | . . . . . . Alert | -11 -10 -10 -9 -9 -9 ------- Run | Scr Mat Min Mat Min Exi Peak Influence 631 | 25 160 98 631 404 . Initial 232 | . 16 18 . 232 . Average 203 | 12 71 33 343 174 . Maximum Alert Level 2 | . . . 2 2 . Low Security (%) 50 | 100 100 100 13 46 . Level 1 36 | . . . 61 47 . Level 2 12 | . . . 25 5 . Level 3 . | . . . . . . Level 4 . | . . . . . . Level 5 . | . . . . . . High Security . | . . . . . . Max Security . | . . . . . . Squads Dispatched 8 | . . 1 7 . . Investigation 3 | . . . 3 . . Extermination . | . . . . . . Reinforcement 4 | . . . 4 . . Assault 1 | . . 1 . . . Garrison . | . . . . . . Intercept . | . . . . . . Construction Impeded 1 | . . . 1 . . Haulers Reinforced . | . . . . . . Stealth | -11 -10 -10 -9 -9 -9 --------- Run | Scr Mat Min Mat Min Exi Distress Signals 4 | . 1 . 3 . . Communications Jammed . | . . . . . . Distress Signals . | . . . . . . Times Spotted 128 | . 15 13 56 11 33 Peak Tracking Total 10 | . 3 10 4 3 10 Tactical Retreats 13 | . . 2 3 2 6 Traps | -11 -10 -10 -9 -9 -9 ------- Run | Scr Mat Min Mat Min Exi Traps Triggered 2 | . . . 2 . . Indirectly . | . . . . . . Trap Hack Attempts . | . . . . . . Triggered . | . . . . . . Disarmed . | . . . . . . Reprogrammed . | . . . . . . Reused . | . . . . . . Traps Extracted . | . . . . . . Installed . | . . . . . . Triggered . | . . . . . . Exploded 3 | . . . . . 3 Machines | -11 -10 -10 -9 -9 -9 ---------- Run | Scr Mat Min Mat Min Exi Machines Disabled 9 | . . . 1 . 8 Max in Single Turn 1 | . . . 1 . 1 Machines Sabotaged . | . . . . . . Garrisons Compromised . | . . . . . . Overloaded Fab Kills . | . . . . . . Fab Network Shutdowns . | . . . . . . Hacking | -11 -10 -10 -9 -9 -9 --------- Run | Scr Mat Min Mat Min Exi Machines Accessed 24 | . 8 . 12 2 2 Terminals 18 | . 8 . 8 2 . Fabricators . | . . . . . . Repair Stations 1 | . . . 1 . . Recycling Units 1 | . . . 1 . . Scanalyzers 2 | . . . 2 . . Garrison Access . | . . . . . . Total Hacks 76 | . 28 . 37 6 5 Successful 44 | . 16 . 21 2 5 Failed 30 | . 12 . 15 3 . Catastrophic 2 | . 2 . . . . Database Lockouts 2 | . . . 1 1 . Manual 49 | . 23 . 19 6 1 Terminals 60 | . 28 . 26 6 . Fabricators . | . . . . . . Repair Stations 2 | . . . 2 . . Recycling Units 3 | . . . 3 . . Scanalyzers 6 | . . . 6 . . Garrison Access . | . . . . . . Terminal Hacks 21 | . 8 . 6 2 5 Record 4 | . . . . . 4 Part Schematic 3 | . 2 . . 1 . Robot Analysis 4 | . 1 . 2 1 . Branch Access Points 1 | . 1 . . . . Terminal Index 1 | . 1 . . . . Unreport Threat 1 | . 1 . . . . Locate Traps 4 | . 2 . 2 . . Hauler Manifests 1 | . . . 1 . . Zone Layout 1 | . . . 1 . . EX-Prototype ID Bank 1 | . . . . . 1 Fabricator Hacks . | . . . . . . Repair Station Hacks 2 | . . . 2 . . Scan Component 1 | . . . 1 . . Repair 1 | . . . 1 . . Recycling Unit Hacks 2 | . . . 2 . . Report Inventory 1 | . . . 1 . . Retrieve Components 1 | . . . 1 . . Scanalyzer 6 | . . . 6 . . Insert Component 3 | . . . 3 . . Analyze 3 | . . . 3 . . Garrison Access Hacks . | . . . . . . Unauthorized Hacks 13 | . 8 . 5 . . Terminals 13 | . 8 . 5 . . Track 3 | . 1 . 2 . . Assimilate 2 | . 2 . . . . Botnet 7 | . 4 . 3 . . Operators 1 | . 1 . . . . Fabricators . | . . . . . . Repair Stations . | . . . . . . Recycling Units . | . . . . . . Scanalyzers . | . . . . . . Garrison Access . | . . . . . . Data Cores Recovered 1 | . . . 1 . . Used 1 | . . . 1 . . Hacking Detections 19 | . 8 . 9 2 . Full Trace Events 2 | . . . 1 1 . Feedback Events . | . . . . . . Feedback Blocked . | . . . . . . Robot Schematics Acquired . | . . . . . . Robots Built . | . . . . . . Matter . | . . . . . . Time . | . . . . . . Total Robot Build Rating . | . . . . . . Part Schematics Acquired 6 | . 2 . 3 1 . Parts Built . | . . . . . . Matter . | . . . . . . Time . | . . . . . . Total Part Build Rating . | . . . . . . Parts Repaired 1 | . . . 1 . . Time 32 | . . . 32 . . Parts Recycled . | . . . . . . Recycled Matter . | . . . . . . Retrieved Matter . | . . . . . . Retrieved Components 1 | . . . 1 . . Parts Scanalyzed 3 | . . . 3 . . Part Schematics Acquired 3 | . . . 3 . . Parts Damaged . | . . . . . . Bothacking | -11 -10 -10 -9 -9 -9 ------------ Run | Scr Mat Min Mat Min Exi Used RIF Installer . | . . . . . . Robots Hacked 4 | . . . . . 4 Non-combat 3 | . . . . . 3 Combat 1 | . . . . . 1 Robot Hacks Applied 4 | . . . . . 4 parse_system 4 | . . . . . 4 Relay Couplers Released . | . . . . . . Robots Rewired . | . . . . . . Allies Hacked . | . . . . . . Hacks Repelled . | . . . . . . Allies | -11 -10 -10 -9 -9 -9 -------- Run | Scr Mat Min Mat Min Exi Total Allies 6 | . 2 4 . . . Largest Group 3 | . 2 3 2 . . Highest-Rated Group 40 | . 20 40 32 . . Highest-Rated Ally 31 | . 10 31 16 . . Total Orders 10 | . 7 3 . . . STAY 6 | . 4 2 . . . FOLLOW 4 | . 3 1 . . . Ally Attacks 44 | . . 13 31 . . Total Damage 498 | . . 159 339 . . Kills 16 | . . 3 13 . . Allies Corrupted . | . . . . . . Allies Melted . | . . . . . . Intel | -11 -10 -10 -9 -9 -9 ------- Run | Scr Mat Min Mat Min Exi Robot Analysis Total 4 | . 1 . 2 1 . Derelict Logs Recovered 3 | . . 1 . 2 . Drone Launches . | . . . . . . Drone Recoveries . | . . . . . . Exploration | -11 -10 -10 -9 -9 -9 ------------- Run | Scr Mat Min Mat Min Exi Turns Passed 9392 | 79 1011 1302 2957 1484 2559 Spaces Moved 4191 | 36 516 591 1279 711 1058 Core . | . . . . . . Treads 4083 | . 444 591 1279 711 1058 Legs 108 | 36 72 . . . . Wheels . | . . . . . . Hover . | . . . . . . Flight . | . . . . . . Fastest Speed 120 | 120 120 180 180 180 180 Average Speed 187 | 120 166 193 183 190 201 Slowest Speed 220 | 120 180 200 220 200 220 Overloaded Moves . | . . . . . . Propulsion Burnouts . | . . . . . . Robots Hopped . | . . . . . . Cave-ins Triggered . | . . . . . . Exploration Rate (%) 79 | 3 97 98 95 98 83 Regions Visited 5 Branch Regions 3 Pre-discovered Areas 1 | . . . . . 1 Known Exits Taken 1 | . 1 . . . . Unknown Exits Taken 4 | 1 . 1 1 1 . Scrap Searched 3 | . . 1 . 2 . Spaces Dug 8 | . 2 . 5 1 . Terrain Destroyed 35 | . 2 . 5 4 24 Melee 5 | . . . 5 . . Projectile 6 | . 2 . . 4 . AOE 24 | . . . . . 24 Terrain Rammed . | . . . . . . Walls Destroyed . | . . . . . . Machines Disabled . | . . . . . . Actions | -11 -10 -10 -9 -9 -9 --------- Run | Scr Mat Min Mat Min Exi Total 5098 | 50 622 684 1628 788 1326 Wait 270 | . 30 29 120 27 64 Move 4186 | 35 515 590 1278 710 1058 Hop . | . . . . . . Pick Up 85 | 2 16 9 18 14 26 Fast Attach 19 | 1 1 2 12 . 3 Attach 30 | . 4 6 6 3 11 Detach 9 | . 1 1 1 . 6 Swap 42 | . 9 3 20 5 5 Drop 89 | . 15 2 34 2 36 Fire 355 | 12 31 39 133 27 113 Melee 10 | . . 1 5 . 4 Ram . | . . . . . . Kick . | . . . . . . Crush 3 | . . 2 1 . . Escape Stasis . | . . . . . . Rewire . | . . . . . . Trap . | . . . . . . Miscellaneous . | . . . . . . Route ------- -11/Scrapyard -10/Materials (discovered 4 exits: *Mat x3 / *Min) -10/Mines (discovered 2 exits: *Mat x2) -9/Materials (discovered 4 exits: *Mat x3 / *Min) -9/Mines (discovered 3 exits: *Mat x2 / *Exi) -9/Exiles (discovered 1 exit: [*Min]) History --------- Turn | Location | Event 17 | -11/Scrapyard | Discovered new exit (range 3) 80 | -11/Scrapyard | Entered Materials 139 | -10/Materials | Discovered new exit (range 15) 318 | -10/Materials | Build established: Mutant 587 | -10/Materials | Discovered new exit (range 11) 755 | -10/Materials | Discovered new exit (range 10) 757 | -10/Materials | Identified exit to Mines 879 | -10/Materials | Discovered new exit (range 5) 1091 | -10/Materials | Entered Mines 1091 | -10/Mines | Accompanied by 2 allies 1177 | -10/Mines | Met a Derelict testing a Signal Generator 1325 | -10/Mines | A weapon hastily lodged in a ceiling crevice suddenly fell to the ground 1447 | -10/Mines | Assembled infested the area 1593 | -10/Mines | Lost 3 parts (1n2w) 1796 | -10/Mines | Learned Materials stockpile data 1806 | -10/Mines | Discovered new exit (range 8) 1872 | -10/Mines | Assisted by bots powering up and referring to "LRC-V3" 2024 | -10/Mines | Received a Rocket Launcher from a helpful Derelict 2229 | -10/Mines | Discovered new exit (range 13) 2393 | -10/Mines | Entered Materials 2393 | -9/Materials | Accompanied by 2 allies 2393 | -9/Materials | Evolved 2 slots: Utility x2 2995 | -9/Materials | Discovered new exit (range 14) 3172 | -9/Materials | Discovered new exit (range 6) 3277 | -9/Materials | Discovered new exit (range 3) 3744 | -9/Materials | Repaired Hrd. Light Armor Plating 4097 | -9/Materials | Build established: Hauler-Mutant 4628 | -9/Materials | Discovered new exit (range 3) 4916 | -9/Materials | Central database locked down 5350 | -9/Materials | Entered Mines 5533 | -9/Mines | Deemed a non-threat by the Exiles lab entrance 5533 | -9/Mines | Discovered new exit (range 5) 5797 | -9/Mines | Discovered new exit (range 6) 5929 | -9/Mines | Identified exit to Materials 6019 | -9/Mines | Central database locked down 6026 | -9/Mines | Learned location of 1 exit from Materials 6834 | -9/Mines | Entered Exiles 6882 | -9/Exiles | Met 8R-AWN 6916 | -9/Exiles | Met EX-HEX 7010 | -9/Exiles | Met EX-DEC 7046 | -9/Exiles | Learned location of Zion (-6) 7112 | -9/Exiles | Discovered new exit (range 14) 7497 | -9/Exiles | Met EX-BIN 7774 | -9/Exiles | Aligned with FarCom system 7776 | -9/Exiles | Given EX-Vault access code 7824 | -9/Exiles | Opened EX-Vault 7834 | -9/Exiles | Found Firepult 7837 | -9/Exiles | Found Cloak of Protection 7844 | -9/Exiles | Found Supersonic Drone Bay 7883 | -9/Exiles | Warned to stay clear of 0b10 Research branches 8441 | -9/Exiles | Attacked by the Exiles 8547 | -9/Exiles | Core integrity fell below 50% 8610 | -9/Exiles | Lost 4 parts (3n1u) 8644 | -9/Exiles | Destroyed 8R-AWN 8654 | -9/Exiles | Found 8R-AWN's Boregun 8661 | -9/Exiles | Found 8R-AWN's Boregun 8664 | -9/Exiles | Found AS-neutralizer No. 17b 8667 | -9/Exiles | Found 8R-AWN's Armor/EX 8673 | -9/Exiles | Lost 3 parts (1p2w) 8686 | -9/Exiles | Found Exp. Targeting Computer 8926 | -9/Exiles | Core integrity fell below 20% 9270 | -9/Exiles | Destroyed EX-HEX 9393 | -9/Exiles | Destroyed by EX-DEC with AWS/EX-DEC Last Messages --------------- 09237_ EX-HEX suffers critical hit. 09237_ Destroyed Lgt. Neutrino Core. 09243_ EX-HEX suffers critical hit. 09243_ Destroyed Adv. Recalibrator. 09255_ Destroyed EX Chip 1. 09264_ Machine disabled. 09270_ EX Chip 2 melted. 09270_ Corruption Screen melted. 09270_ EX Chip 2 melted. 09270_ EX Chip 1 melted. 09270_ EX Chip 2 melted. 09270_ EX-HEX destroyed. 09275_ Acquired 30 matter. 09284_ W1-DM0 destroyed. 09298_ ZX-C33 destroyed. 09309_ EX-BIN: "I just want to science!" 09337_ GM-J5T destroyed. 09352_ Machine disabled. 09380_ Destroyed EX Chip 2. 09391_ Plasma Cutter destroyed. Map ----- +----------------------------------------------------+ | ????????????????????????##" ""## | | ?????????????????????????#"" ""#### | | ?????????????????????????#" """"##??# | | ?????????????????????????#""" """#??## | | ?????????????????????????## ""##??#! | | ??????????????????????????#"" """##???#" | | ??????????????????????????##""" ##????#" | | ???????????????????????????##"""" ##?????#!! | | ????????????????????????????### =% #??????### | | ??????????????????????????????##### ##????????? | | ??????????????????????????????????## #?????????? | | ???????????????????????????????????#= #?????????? | | ???????????????????????????????????#%= #?????????? | | ???????????????????????????????????# #?????????? | | ??????????????????????????###??????# #?????????? | | ????????????????????????#"""""?????# #?????????? | | ?????????????????????????"""""""???# #?????????? | | ????????????????????????#" """"#??# #?????????? | | ?????????????????????????"" """???# #?????????? | | ???????????????" ??????"" ""???# #?????????? | | ?????????????###"""########"""######= #####?????? | | ?????????????""" """""""" """"""!* """""""#??? | | ?????????"""""" """"""" =!!!!!%* "#??? | | ???????? c * %!!!!== " | | ???????? % =!!!!! " " | | ???????? c ! @ *!!! " ? | | ?????????" "" #""? | | ??????????""" " """"" " "" " """""#??? | | ???????????#####"""###""###"""########"""######??? | | ???????????????" ???#""#"" ""?????? ""??????? | | ???????????????"?????#""#""" ""#????? """??????? | | ?????????????????????"""#" " "#?????"""""??????? | | ?????????????????????????"""""""#????? ""????????? | | ?????????????????????????"""""""#????????????????? | | ???????????????????????????##?#??????????????????? | | ?????????????????????????????????????????????????? | | ?????????????????????????????????????????????????? | | ?????????????????????????????????????????????????? | | ?????????????????????????????????????????????????? | | | | | | | | | | | | | | | | | | | | | | | +----------------------------------------------------+ Best States ------------- Heat Dissipation 42 Energy Generation 14 Energy Capacity 265 Matter Stores 300 Matter Capacity 300 Sight Range 16 Terrain Scan Density 10 Armor Coverage 300 Evasion (%) 40 Recoil Reduction 2 Salvage Targeting 1 Item Schematics ----------------- Hcp. Storage Unit | -10/Materials | Hacked Lrg. Storage Unit | -10/Materials | Hacked Hcp. Matter Pod | -9/Materials | Scanalyzed Katana | -9/Materials | Scanalyzed Datajack | -9/Materials | Scanalyzed Plasma Cutter | -9/Mines | Hacked Robot Schematics ------------------ None Fabricated ------------ Nothing Alien Tech Used ----------------- None Achievements -------------- None Challenges ------------ None Game ------ Seed EtherialTacticalChip Manual? 0 Play Time 01:02:54 Cumulative 89.8 hours Start 2020.11.08 @ 15:35:26 End 2020.11.08 @ 16:33:26 Sessions 1 Manual Loads 0 Difficulty Rogue Special Mode Halloween2020/ForbiddenLore Game No. 77 Rogue 77 Adventurer 0 Explorer 0 Win Type - Total 0 Types 0/0/0/0/0/0/0/0/0 Lore% 48 Gallery% 55 Achievement% 52 Wizard Run 0 Options --------- ASCII 0 Keyboard 1 Movement Numpad Keybinds 0 Fullscreen 1 Font 12/Terminus Map View 83x54 Tactical HUD 1 Map Filters NONE Filters NONE Steam 1 RUN: a159d72b-18a0-4223-bd1c-ad6a05fe90f2